fUSD/lending_fUSD_20260606
["ID","MTS","AMOUNT","RATE_DAILY","PERIOD"]
[424250754,1780705869000,-500.0,0.00032876,2]
[424250755,1780705869000,-500.0,0.00032876,2]
[424250759,1780705869000,-402.96040911,0.00032876,2]
[424250757,1780705869000,-500.0,0.00032876,2]
[424250766,1780705869000,-905.92,0.00032877,2]
[424250756,1780705869000,-348.94783208,0.00032876,2]
[424250772,1780705869000,-151.0,0.00032877,7]
[424250764,1780705869000,-1000.0,0.00032877,10]
[424250760,1780705869000,-164.74709532,0.00032876,2]
[424250765,1780705869000,-630.0,0.00032877,10]
[424250758,1780705869000,-500.0,0.00032876,2]
[424250761,1780705869000,-500.0,0.00032876,2]
[424250768,1780705869000,-151.0,0.00032877,7]
[424250767,1780705869000,-351.03,0.00032877,2]
[424250769,1780705869000,-151.0,0.00032877,7]
[424250770,1780705869000,-151.0,0.00032877,7]
[424250771,1780705869000,-151.0,0.00032877,7]
[424250773,1780705869000,-151.0,0.00032877,7]
[424250763,1780705869000,-500.0,0.00032876,2]
[424250794,1780705869000,-500.0,0.00032877,10]
[424250806,1780705869000,-500.0,0.00032955,2]
[424250795,1780705869000,-500.0,0.00032877,10]
[424250830,1780705869000,-1689.89123066,0.00033,120]
[424250831,1780705869000,-1484.84558265,0.00033,120]
[424250833,1780705869000,-591.10394002,0.00033,120]
[424250835,1780705869000,-464.23258435,0.00033,120]
[424250834,1780705869000,-327.35912312,0.00033,120]
[424250844,1780705869000,-282.621454,0.00033,8]
[424250838,1780705869000,-357.42906227,0.00033,120]
[424250836,1780705869000,-1496.65364586,0.00033,120]
[424250841,1780705869000,-353.868082,0.00033,8]
[424250832,1780705869000,-1617.55971657,0.00033,120]
[424250829,1780705869000,-621.75348237,0.00033,120]
[424250843,1780705869000,-170.297088,0.00033,8]
[424250842,1780705869000,-234.910024,0.00033,8]
[424250837,1780705869000,-577.6521897,0.00033,120]
[424250839,1780705869000,-298.86994577,0.00033,120]
[424250845,1780705869000,-267.692214,0.00033,8]
[424250848,1780705869000,-537.721692,0.00033,8]
[424250849,1780705869000,-606.517096,0.00033,8]
[424250847,1780705869000,-574.039139,0.00033,14]
[424250851,1780705869000,-641.0,0.00033011,8]
[424250850,1780705869000,-174.227302,0.00033,8]
[424250796,1780705869000,-330.46506309,0.00032877,10]
[424250840,1780705869000,-849.54826591,0.00033,120]
[424250826,1780705869000,-514.12336182,0.00033,120]
[424250846,1780705869000,-318.41257,0.00033,8]
[424250823,1780705869000,-271.84335937,0.00033,120]
[424250825,1780705869000,-589.99031754,0.00033,120]
[424250801,1780705869000,-3299.73499116,0.00032891,2]
[424250804,1780705869000,-3299.73499116,0.00032925,2]
[424250809,1780705869000,-406.08085529,0.00032955,2]
[424250807,1780705869000,-503.48646499,0.00032955,2]
[424250814,1780705869000,-2316.87,0.00033,30]
[424250813,1780705869000,-234.87751754,0.00032993,10]
[424250812,1780705869000,-3299.73499116,0.00032993,2]
[424250811,1780705869000,-3297.90507004,0.00032985,2]
[424250808,1780705869000,-400.0,0.00032955,2]
[424250815,1780705869000,-52318.84116698,0.00033,2]
[424250805,1780705869000,-1001.61824326,0.00032938,2]
[424250827,1780705869000,-278.27015964,0.00033,120]
[424250817,1780705869000,-10089.3362616,0.00033,2]
[424250822,1780705869000,-537.43448418,0.00033,120]
[424250828,1780705869000,-383.07251658,0.00033,120]
[424250820,1780705869000,-1422.88445344,0.00033,120]
[424250819,1780705869000,-333.99681997,0.00033,120]
[424250816,1780705869000,-280.999999,0.00033,30]
[424250818,1780705869000,-1059.83107088,0.00033,120]
[424250821,1780705869000,-1450.48222787,0.00033,120]
[424250810,1780705869000,-3299.73499116,0.00032959,2]
[424250824,1780705869000,-915.84880728,0.00033,120]
[424250891,1780705870000,-3299.73499116,0.00033247,2]
[424250889,1780705870000,-3297.90507004,0.0003324,2]
[424250890,1780705870000,-1982.27,0.00033245,30]
[424250888,1780705870000,-158.09,0.00033233,7]
[424250887,1780705870000,-150.0,0.00033226,2]
[424250886,1780705870000,-1487.12606652,0.00033225,2]
[424250883,1780705870000,-2929.02039726,0.00033225,2]
[424250882,1780705870000,-1153.33277151,0.00033225,2]
[424250884,1780705870000,-2543.82908608,0.00033225,2]
[424250893,1780705870000,-1085.25,0.00033257,9]
[424250885,1780705870000,-1271.38728633,0.00033225,2]
[424250897,1780705870000,-3299.73499116,0.00033307,2]
[424250904,1780705870000,-1014.0,0.00033355,30]
[424250900,1780705870000,-1255.4381465,0.00033317,2]
[424250895,1780705870000,-3299.73499116,0.00033277,2]
[424250899,1780705870000,-1052.41726066,0.00033317,2]
[424250902,1780705870000,-3299.73499116,0.00033336,2]
[424250894,1780705870000,-230.14612958,0.00033269,7]
[424250901,1780705870000,-1185.87995951,0.00033317,2]
[424250898,1780705870000,-300.0,0.00033315,29]
[424250896,1780705870000,-3297.90507004,0.000333,2]
[424250880,1780705870000,-2682.84457449,0.00033225,2]
[424250913,1780705870000,-3833.0,0.00033356,30]
[424250910,1780705870000,-3806.0,0.00033355,30]
[424250903,1780705870000,-791.0,0.00033355,30]
[424250892,1780705870000,-1101.95182833,0.0003325,2]
[424250881,1780705870000,-1155.32209642,0.00033225,2]
[424250863,1780705870000,-3299.73499116,0.00033091,2]
[424250875,1780705870000,-3299.73499116,0.00033186,2]
[424250907,1780705870000,-3440.0,0.00033355,30]
[424250852,1780705870000,-5000.0,0.00033018,30]
[424250854,1780705870000,-489.1804628,0.00033026,2]
[424250853,1780705870000,-3299.73499116,0.00033026,2]
[424250857,1780705870000,-3297.90507004,0.00033051,2]
[424250855,1780705870000,-24991.2921953,0.00033026,2]
[424250856,1780705870000,-4495.946153,0.00033026,2]
[424250858,1780705870000,-3299.73499116,0.00033059,2]
[424250866,1780705870000,-441.26982171,0.00033123,120]
[424250860,1780705870000,-5000.0,0.00033087,2]
[424250862,1780705870000,-5000.0,0.00033087,2]
[424250864,1780705870000,-3297.90507004,0.00033116,2]
[424250879,1780705870000,-1145.83452462,0.00033225,2]
[424250859,1780705870000,-5000.0,0.00033087,2]
[424250867,1780705870000,-482.29571649,0.00033123,120]
[424250861,1780705870000,-5000.0,0.00033087,2]
[424250868,1780705870000,-693.39197629,0.00033127,2]
[424250870,1780705870000,-183.60827665,0.00033133,11]
[424250872,1780705870000,-248.722339,0.0003315,9]
[424250871,1780705870000,-179.97120458,0.00033143,2]
[424250869,1780705870000,-864.78058953,0.00033127,2]
[424250874,1780705870000,-3297.90507004,0.00033178,2]
[424250873,1780705870000,-3299.73499116,0.00033155,2]
[424250877,1780705870000,-3299.73499116,0.00033216,2]
[424250876,1780705870000,-189.103363,0.000332,9]
[424250878,1780705870000,-2291.56287144,0.00033225,2]
[424250865,1780705870000,-3299.73499116,0.00033123,2]
[424250906,1780705870000,-2590.0,0.00033355,30]
[424250962,1780705870000,-1059.83107088,0.000339,120]
[424250908,1780705870000,-1022.0,0.00033355,30]
[424250942,1780705870000,-3299.73499116,0.00033561,2]
[424250943,1780705870000,-165.79,0.00033562,7]
[424250938,1780705870000,-3297.90507004,0.00033526,2]
[424250949,1780705870000,-5000.0,0.00033687,30]
[424250947,1780705870000,-3297.90507004,0.00033633,2]
[424250948,1780705870000,-3297.90507004,0.00033685,2]
[424250946,1780705870000,-3299.73499116,0.00033614,2]
[424250945,1780705870000,-3299.73499116,0.00033588,2]
[424250944,1780705870000,-3297.90507004,0.0003358,2]
[424250951,1780705870000,-161.35,0.00033696,7]
[424250961,1780705870000,-3297.90507004,0.00033885,2]
[424250954,1780705870000,-3297.90507004,0.00033787,2]
[424250955,1780705870000,-304.6208102,0.000338,120]
[424250958,1780705870000,-3297.90507004,0.00033836,2]
[424250952,1780705870000,-14165.05,0.00033721,30]
[424250957,1780705870000,-3296.15439458,0.00033822,2]
[424250959,1780705870000,-350.0,0.00033837,32]
[424250960,1780705870000,-179.97120458,0.00033838,2]
[424250950,1780705870000,-2741.69,0.00033691,7]
[424250956,1780705870000,-164.0,0.00033808,11]
[424250964,1780705870000,-1422.88445344,0.000339,120]
[424250965,1780705870000,-1450.48222787,0.000339,120]
[424250963,1780705870000,-333.99681997,0.000339,120]
[424250966,1780705870000,-537.43448418,0.000339,120]
[424250905,1780705870000,-574.0,0.00033355,30]
[424250941,1780705870000,-641.0,0.00033545,9]
[424250940,1780705870000,-3299.73499116,0.00033534,2]
[424250953,1780705870000,-3297.90507004,0.00033736,2]
[424250937,1780705870000,-3299.73499116,0.00033506,2]
[424250909,1780705870000,-587.0,0.00033355,30]
[424250939,1780705870000,-8273.21,0.00033533,7]
[424250911,1780705870000,-638.0,0.00033355,30]
[424250912,1780705870000,-704.0,0.00033355,30]
[424250914,1780705870000,-3297.90507004,0.00033358,2]
[424250916,1780705870000,-150.333687,0.00033369,2]
[424250918,1780705870000,-5000.0,0.00033396,2]
[424250919,1780705870000,-152.14,0.00033398,7]
[424250917,1780705870000,-3299.73499116,0.00033394,2]
[424250925,1780705870000,-3297.90507004,0.00033415,2]
[424250915,1780705870000,-3299.73499116,0.00033365,2]
[424250920,1780705870000,-880.79,0.000334,14]
[424250924,1780705870000,-578.02277375,0.00033409,7]
[424250922,1780705870000,-1173.15736,0.000334,120]
[424250936,1780705870000,-1235.04492495,0.000335,2]
[424250923,1780705870000,-1592.0,0.000334,11]
[424250927,1780705870000,-800.0,0.00033434,30]
[424250926,1780705870000,-3299.73499116,0.00033422,2]
[424250935,1780705870000,-179.97120458,0.0003349,2]
[424250931,1780705870000,-9506.41,0.00033465,2]
[424250929,1780705870000,-408.0,0.00033434,30]
[424250934,1780705870000,-3299.73499116,0.00033479,2]
[424250928,1780705870000,-1691.0,0.00033434,30]
[424250930,1780705870000,-3299.73499116,0.00033451,2]
[424250921,1780705870000,-1000.0,0.000334,120]
[424250932,1780705870000,-1060.95623879,0.00033468,2]
[424250933,1780705870000,-3297.90507004,0.00033471,2]
[424251004,1780705871000,-200.0,0.00034159,2]
[424251008,1780705871000,-179.97120457,0.00034186,2]
[424251005,1780705871000,-200.0,0.00034159,2]
[424251007,1780705871000,-4071.0,0.00034182,7]
[424251003,1780705871000,-200.0,0.00034159,2]
[424251002,1780705871000,-200.0,0.00034159,2]
[424250998,1780705871000,-3297.90507004,0.00034118,2]
[424251000,1780705871000,-9506.41,0.0003415,2]
[424250999,1780705871000,-2321.0,0.00034128,11]
[424250996,1780705871000,-3297.90507004,0.00034072,2]
[424251009,1780705871000,-150.0,0.0003419,2]
[424251001,1780705871000,-200.0,0.00034159,2]
[424251012,1780705871000,-8273.21,0.00034218,7]
[424251024,1780705871000,-1022.0,0.00034355,30]
[424251010,1780705871000,-369.044479,0.000342,11]
[424251014,1780705871000,-539.83,0.00034247,7]
[424251017,1780705871000,-3297.90507004,0.0003425,2]
[424251016,1780705871000,-552.43,0.00034247,30]
[424251015,1780705871000,-1000.0,0.00034247,120]
[424251011,1780705871000,-3297.90507004,0.00034207,2]
[424251029,1780705871000,-3833.0,0.00034356,30]
[424251019,1780705871000,-791.0,0.00034355,30]
[424251018,1780705871000,-347.002974,0.00034275,120]
[424251022,1780705871000,-2590.0,0.00034355,30]
[424251025,1780705871000,-587.0,0.00034355,30]
[424251021,1780705871000,-574.0,0.00034355,30]
[424251006,1780705871000,-3297.90507004,0.00034163,2]
[424251013,1780705871000,-200.0,0.00034243,2]
[424250997,1780705871000,-641.0,0.00034079,9]
[424251020,1780705871000,-1014.0,0.00034355,30]
[424250994,1780705871000,-3297.90507004,0.00034027,2]
[424250972,1780705871000,-383.07251658,0.000339,120]
[424250969,1780705871000,-589.99031754,0.000339,120]
[424250968,1780705871000,-915.84880728,0.000339,120]
[424250971,1780705871000,-278.27015964,0.000339,120]
[424250970,1780705871000,-514.12336182,0.000339,120]
[424250967,1780705871000,-271.84335937,0.000339,120]
[424250974,1780705871000,-1689.89123066,0.000339,120]
[424250981,1780705871000,-577.6521897,0.000339,120]
[424250978,1780705871000,-327.35912312,0.000339,120]
[424250982,1780705871000,-357.42906227,0.000339,120]
[424250975,1780705871000,-1484.84558265,0.000339,120]
[424250979,1780705871000,-464.23258435,0.000339,120]
[424250973,1780705871000,-621.75348237,0.000339,120]
[424250983,1780705871000,-298.86994577,0.000339,120]
[424250984,1780705871000,-849.54826591,0.000339,120]
[424250980,1780705871000,-1496.65364586,0.000339,120]
[424250976,1780705871000,-1617.55971657,0.000339,120]
[424250977,1780705871000,-591.10394002,0.000339,120]
[424250985,1780705871000,-1125.462324,0.000339,10]
[424250988,1780705871000,-3297.90507004,0.0003398,2]
[424250987,1780705871000,-3297.90507004,0.00033933,2]
[424250991,1780705871000,-750.0,0.00034,2]
[424250992,1780705871000,-6072.0,0.00034005,2]
[424250986,1780705871000,-1592.0,0.00033901,11]
[424250990,1780705871000,-2366.04809502,0.00034,2]
[424250989,1780705871000,-1000.0,0.00034,40]
[424250995,1780705871000,-5000.0,0.00034027,30]
[424250993,1780705871000,-3641.0,0.00034005,2]
[424251027,1780705871000,-638.0,0.00034355,30]
[424251084,1780705871000,-199837.49858974,0.000349,3]
[424251023,1780705871000,-3440.0,0.00034355,30]
[424251061,1780705871000,-1592.0,0.00034541,11]
[424251070,1780705871000,-164.0,0.00034765,11]
[424251069,1780705871000,-2321.0,0.00034731,11]
[424251065,1780705871000,-641.0,0.00034613,10]
[424251059,1780705871000,-566.07,0.00034541,7]
[424251060,1780705871000,-2321.0,0.00034541,11]
[424251062,1780705871000,-434.88,0.00034544,60]
[424251064,1780705871000,-159.04670416,0.00034578,2]
[424251066,1780705871000,-1735.01,0.0003466,2]
[424251067,1780705871000,-1281.88,0.00034688,10]
[424251063,1780705871000,-2353.28,0.00034544,60]
[424251072,1780705871000,-769.12472604,0.00034774,30]
[424251071,1780705871000,-1592.0,0.00034768,11]
[424251082,1780705871000,-14000.0,0.00034882,30]
[424251074,1780705871000,-865.82,0.00034817,2]
[424251075,1780705871000,-9506.41,0.00034835,2]
[424251076,1780705871000,-918.0,0.00034838,3]
[424251077,1780705871000,-250.0,0.0003484,7]
[424251078,1780705871000,-152.0,0.00034844,8]
[424251073,1780705871000,-1500.0,0.00034795,2]
[424251079,1780705871000,-386.52401027,0.00034882,50]
[424251081,1780705871000,-70000.0,0.00034882,30]
[424251080,1780705871000,-1479.63722076,0.00034882,30]
[424251083,1780705871000,-150.0,0.00034887,2]
[424251085,1780705871000,-349.315084,0.000349,13]
[424251087,1780705871000,-8273.25,0.00034903,7]
[424251028,1780705871000,-704.0,0.00034355,30]
[424251057,1780705871000,-1155.25,0.00034541,7]
[424251068,1780705871000,-595.041137,0.000347,12]
[424251086,1780705871000,-1500.0,0.000349,7]
[424251048,1780705871000,-151.93571019,0.000345,120]
[424251058,1780705871000,-808.67,0.00034541,7]
[424251030,1780705871000,-2741.69,0.00034376,7]
[424251031,1780705871000,-500.0,0.00034378,14]
[424251035,1780705871000,-339.38,0.000344,60]
[424251033,1780705871000,-1101.65,0.00034384,30]
[424251036,1780705871000,-800.0,0.00034434,30]
[424251034,1780705871000,-880.79,0.000344,14]
[424251032,1780705871000,-1000.15,0.00034384,30]
[424251042,1780705871000,-500.0,0.00034453,2]
[424251037,1780705871000,-1691.0,0.00034434,30]
[424251041,1780705871000,-500.0,0.00034453,2]
[424251038,1780705871000,-408.0,0.00034434,30]
[424251039,1780705871000,-421.92629531,0.00034453,2]
[424251026,1780705871000,-3806.0,0.00034355,30]
[424251044,1780705871000,-400.0,0.00034453,2]
[424251040,1780705871000,-500.0,0.00034453,2]
[424251045,1780705871000,-400.0,0.00034453,2]
[424251051,1780705871000,-1227.0,0.00034501,2]
[424251046,1780705871000,-20136.72656788,0.000345,30]
[424251047,1780705871000,-200.0,0.000345,7]
[424251052,1780705871000,-153.63773557,0.00034508,60]
[424251056,1780705871000,-1650.35,0.00034541,7]
[424251049,1780705871000,-1273.0,0.00034501,2]
[424251055,1780705871000,-320.126016,0.00034533,12]
[424251053,1780705871000,-1400.0,0.00034508,60]
[424251043,1780705871000,-400.0,0.00034453,2]
[424251054,1780705871000,-630.17,0.00034521,120]
[424251050,1780705871000,-382.0,0.00034501,2]
[424251128,1780705872000,-300.0,0.00034998,2]
[424251126,1780705872000,-300.36336253,0.00034998,2]
[424251124,1780705872000,-302.57479324,0.00034998,2]
[424251125,1780705872000,-300.0,0.00034998,2]
[424251129,1780705872000,-300.0,0.00034998,2]
[424251113,1780705872000,-300.0,0.00034998,2]
[424251127,1780705872000,-301.35684721,0.00034998,2]
[424251122,1780705872000,-727.95528898,0.00034998,2]
[424251130,1780705872000,-300.0,0.00034998,2]
[424251131,1780705872000,-300.0,0.00034998,2]
[424251121,1780705872000,-535.40148659,0.00034998,2]
[424251123,1780705872000,-300.0,0.00034998,2]
[424251132,1780705872000,-300.0,0.00034998,2]
[424251138,1780705872000,-300.0,0.00034998,2]
[424251137,1780705872000,-528.25355298,0.00034998,2]
[424251133,1780705872000,-300.0,0.00034998,2]
[424251140,1780705872000,-300.0,0.00034998,2]
[424251135,1780705872000,-300.0,0.00034998,2]
[424251134,1780705872000,-300.0,0.00034998,2]
[424251142,1780705872000,-866.62523856,0.00034998,2]
[424251141,1780705872000,-300.0,0.00034998,2]
[424251143,1780705872000,-951.46597211,0.00034998,2]
[424251153,1780705872000,-595.52105001,0.00034998,2]
[424251154,1780705872000,-300.0,0.00034998,2]
[424251155,1780705872000,-300.0,0.00034998,2]
[424251152,1780705872000,-300.0,0.00034998,2]
[424251114,1780705872000,-606.01943079,0.00034998,2]
[424251136,1780705872000,-344.84564358,0.00034998,2]
[424251119,1780705872000,-300.0,0.00034998,2]
[424251103,1780705872000,-300.0,0.00034998,2]
[424251120,1780705872000,-1069.74260505,0.00034998,2]
[424251089,1780705872000,-1259.7255,0.00034908,2]
[424251088,1780705872000,-1199.6272,0.00034908,2]
[424251090,1780705872000,-8651.1398,0.00034908,2]
[424251091,1780705872000,-1048.77798409,0.00034911,7]
[424251092,1780705872000,-291.637417,0.00034914,15]
[424251093,1780705872000,-2014.06,0.00034916,120]
[424251094,1780705872000,-155.575147,0.00034971,13]
[424251095,1780705872000,-15555.27511513,0.00034998,10]
[424251096,1780705872000,-300.0,0.00034998,2]
[424251097,1780705872000,-1097.74908549,0.00034998,2]
[424251099,1780705872000,-300.0,0.00034998,2]
[424251098,1780705872000,-300.0,0.00034998,2]
[424251102,1780705872000,-300.0,0.00034998,2]
[424251112,1780705872000,-300.0,0.00034998,2]
[424251101,1780705872000,-300.0,0.00034998,2]
[424251148,1780705872000,-300.0,0.00034998,2]
[424251104,1780705872000,-300.0,0.00034998,2]
[424251105,1780705872000,-300.0,0.00034998,2]
[424251106,1780705872000,-300.0,0.00034998,2]
[424251107,1780705872000,-300.0,0.00034998,2]
[424251108,1780705872000,-300.0,0.00034998,2]
[424251109,1780705872000,-493.96494702,0.00034998,2]
[424251110,1780705872000,-300.0,0.00034998,2]
[424251115,1780705872000,-300.0,0.00034998,2]
[424251117,1780705872000,-300.0,0.00034998,2]
[424251116,1780705872000,-300.0,0.00034998,2]
[424251111,1780705872000,-300.0,0.00034998,2]
[424251118,1780705872000,-3206.51250246,0.00034998,2]
[424251100,1780705872000,-300.0,0.00034998,2]
[424251145,1780705872000,-300.0,0.00034998,2]
[424251139,1780705872000,-300.0,0.00034998,2]
[424251151,1780705872000,-300.0,0.00034998,2]
[424251187,1780705872000,-300.0,0.00034998,2]
[424251184,1780705872000,-300.0,0.00034998,2]
[424251188,1780705872000,-300.0,0.00034998,2]
[424251189,1780705872000,-300.0,0.00034998,2]
[424251192,1780705872000,-300.0,0.00034998,2]
[424251193,1780705872000,-300.0,0.00034998,2]
[424251185,1780705872000,-493.96494702,0.00034998,2]
[424251191,1780705872000,-301.00778521,0.00034998,2]
[424251186,1780705872000,-300.0,0.00034998,2]
[424251194,1780705872000,-3206.51250246,0.00034998,2]
[424251196,1780705872000,-1069.74260505,0.00034998,2]
[424251190,1780705872000,-606.01943079,0.00034998,2]
[424251195,1780705872000,-300.0,0.00034998,2]
[424251198,1780705872000,-727.95528898,0.00034998,2]
[424251208,1780705872000,-300.0,0.00034998,2]
[424251210,1780705872000,-300.0,0.00034998,2]
[424251209,1780705872000,-300.0,0.00034998,2]
[424251197,1780705872000,-535.40148659,0.00034998,2]
[424251200,1780705872000,-302.57479324,0.00034998,2]
[424251202,1780705872000,-300.36336253,0.00034998,2]
[424251199,1780705872000,-300.0,0.00034998,2]
[424251201,1780705872000,-300.0,0.00034998,2]
[424251206,1780705872000,-300.0,0.00034998,2]
[424251203,1780705872000,-301.35684721,0.00034998,2]
[424251205,1780705872000,-300.0,0.00034998,2]
[424251204,1780705872000,-525.36649581,0.00034998,2]
[424251146,1780705872000,-300.0,0.00034998,2]
[424251211,1780705872000,-300.0,0.00034998,2]
[424251212,1780705872000,-344.84564358,0.00034998,2]
[424251178,1780705872000,-300.0,0.00034998,2]
[424251175,1780705872000,-300.0,0.00034998,2]
[424251207,1780705872000,-300.0,0.00034998,2]
[424251179,1780705872000,-300.0,0.00034998,2]
[424251180,1780705872000,-300.0,0.00034998,2]
[424251150,1780705872000,-300.0,0.00034998,2]
[424251149,1780705872000,-1343.13549955,0.00034998,2]
[424251147,1780705872000,-310.41093008,0.00034998,2]
[424251157,1780705872000,-300.0,0.00034998,2]
[424251164,1780705872000,-471.48222001,0.00034998,2]
[424251167,1780705872000,-300.0,0.00034998,2]
[424251166,1780705872000,-485.39259751,0.00034998,2]
[424251160,1780705872000,-300.0,0.00034998,2]
[424251165,1780705872000,-300.0,0.00034998,2]
[424251156,1780705872000,-512.60852236,0.00034998,2]
[424251159,1780705872000,-453.07819494,0.00034998,2]
[424251169,1780705872000,-576.89415263,0.00034998,2]
[424251168,1780705872000,-300.0,0.00034998,2]
[424251144,1780705872000,-1801.88721781,0.00034998,2]
[424251177,1780705872000,-300.0,0.00034998,2]
[424251162,1780705872000,-300.0,0.00034998,2]
[424251183,1780705872000,-300.0,0.00034998,2]
[424251174,1780705872000,-300.0,0.00034998,2]
[424251181,1780705872000,-300.0,0.00034998,2]
[424251182,1780705872000,-300.0,0.00034998,2]
[424251170,1780705872000,-300.0,0.00034998,2]
[424251176,1780705872000,-300.0,0.00034998,2]
[424251173,1780705872000,-1097.74908549,0.00034998,2]
[424251171,1780705872000,-300.0,0.00034998,2]
[424251158,1780705872000,-582.33663571,0.00034998,2]
[424251161,1780705872000,-300.0,0.00034998,2]
[424251163,1780705872000,-300.0,0.00034998,2]
[424251172,1780705872000,-483.4988537,0.00034998,2]
[424251256,1780705873000,-300.0,0.00034998,2]
[424251257,1780705873000,-300.0,0.00034998,2]
[424251252,1780705873000,-483.4988537,0.00034998,2]
[424251246,1780705873000,-300.0,0.00034998,2]
[424251245,1780705873000,-485.39259751,0.00034998,2]
[424251249,1780705873000,-300.0,0.00034998,2]
[424251247,1780705873000,-300.0,0.00034998,2]
[424251242,1780705873000,-301.49003313,0.00034998,2]
[424251250,1780705873000,-300.0,0.00034998,2]
[424251251,1780705873000,-300.0,0.00034998,2]
[424251244,1780705873000,-300.0,0.00034998,2]
[424251243,1780705873000,-300.0,0.00034998,2]
[424251263,1780705873000,-301.6768001,0.00034998,2]
[424251261,1780705873000,-300.0,0.00034998,2]
[424251258,1780705873000,-300.0,0.00034998,2]
[424251253,1780705873000,-1097.74908549,0.00034998,2]
[424251254,1780705873000,-300.0,0.00034998,2]
[424251259,1780705873000,-300.0,0.00034998,2]
[424251260,1780705873000,-300.0,0.00034998,2]
[424251262,1780705873000,-300.0,0.00034998,2]
[424251264,1780705873000,-300.0,0.00034998,2]
[424251265,1780705873000,-493.96494702,0.00034998,2]
[424251266,1780705873000,-300.0,0.00034998,2]
[424251273,1780705873000,-300.0,0.00034998,2]
[424251275,1780705873000,-300.0,0.00034998,2]
[424251248,1780705873000,-560.37662927,0.00034998,2]
[424251255,1780705873000,-300.0,0.00034998,2]
[424251241,1780705873000,-300.0,0.00034998,2]
[424251236,1780705873000,-582.33663571,0.00034998,2]
[424251239,1780705873000,-300.0,0.00034998,2]
[424251270,1780705873000,-606.01943079,0.00034998,2]
[424251213,1780705873000,-528.25355298,0.00034998,2]
[424251215,1780705873000,-300.0,0.00034998,2]
[424251214,1780705873000,-300.0,0.00034998,2]
[424251217,1780705873000,-300.0,0.00034998,2]
[424251216,1780705873000,-300.0,0.00034998,2]
[424251222,1780705873000,-300.0,0.00034998,2]
[424251218,1780705873000,-866.62523856,0.00034998,2]
[424251221,1780705873000,-300.0,0.00034998,2]
[424251219,1780705873000,-951.46597211,0.00034998,2]
[424251220,1780705873000,-1801.88721781,0.00034998,2]
[424251223,1780705873000,-300.0,0.00034998,2]
[424251238,1780705873000,-453.07819494,0.00034998,2]
[424251225,1780705873000,-410.64394477,0.00034998,2]
[424251233,1780705873000,-300.0,0.00034998,2]
[424251224,1780705873000,-310.41093008,0.00034998,2]
[424251237,1780705873000,-383.97068889,0.00034998,2]
[424251234,1780705873000,-512.60852236,0.00034998,2]
[424251226,1780705873000,-300.0,0.00034998,2]
[424251232,1780705873000,-300.0,0.00034998,2]
[424251227,1780705873000,-1343.13549955,0.00034998,2]
[424251228,1780705873000,-300.0,0.00034998,2]
[424251230,1780705873000,-300.0,0.00034998,2]
[424251231,1780705873000,-595.52105001,0.00034998,2]
[424251229,1780705873000,-300.0,0.00034998,2]
[424251240,1780705873000,-300.0,0.00034998,2]
[424251235,1780705873000,-300.0,0.00034998,2]
[424251271,1780705873000,-300.0,0.00034998,2]
[424251327,1780705873000,-300.0,0.00034998,2]
[424251272,1780705873000,-300.0,0.00034998,2]
[424251303,1780705873000,-300.0,0.00034998,2]
[424251308,1780705873000,-300.0,0.00034998,2]
[424251311,1780705873000,-595.52105001,0.00034998,2]
[424251309,1780705873000,-300.0,0.00034998,2]
[424251305,1780705873000,-300.0,0.00034998,2]
[424251302,1780705873000,-300.0,0.00034998,2]
[424251306,1780705873000,-300.0,0.00034998,2]
[424251312,1780705873000,-300.0,0.00034998,2]